Workbook

Sheet Feuil1 (hidden)
F1: R3 | L1: R3
A2: =C2+D2+E2 -> 1 | B2: 1 | C2: 1 | D2: 0 | E2: 0 | F2: =B2*0.4 -> 0.4 | G2: =B2*0.4 -> 0.4 | H2: =B2*0.2 -> 0.2 | I2: 1 | J2: 1 | K2: 0 | L2: =I2*0.6 -> 0.6 | M2: =I2*0.4 -> 0.4
A3: =C3+D3+E3 -> 2 | B3: =1+B2 -> 2 | C3: 1 | D3: 1 | E3: 0 | F3: =B3*0.4 -> 0.8 | G3: =B3*0.4 -> 0.8 | H3: =B3*0.2 -> 0.4 | I3: =1+I2 -> 2 | J3: 1 | K3: 1 | L3: =I3*0.6 -> 1.2 | M3: =I3*0.4 -> 0.8
A4: 3 | B4: =1+B3 -> 3 | C4: 1 | D4: 1 | E4: 1 | F4: 1.2 | G4: 1.2 | H4: 0.6 | I4: =1+I3 -> 3 | J4: 2 | K4: 1 | L4: 1.8 | M4: 1.2
A5: 4 | B5: 4 | C5: 2 | D5: 1 | E5: 1 | F5: 1.6 | G5: 1.6 | H5: 0.8 | I5: 4 | J5: 2 | K5: 2 | L5: 2.4 | M5: 1.6
A6: 5 | B6: 5 | C6: 2 | D6: 2 | E6: 1 | F6: 2 | G6: 2 | H6: 1 | I6: 5 | J6: 3 | K6: 2 | L6: 3 | M6: 2
A7: 6 | B7: 6 | C7: 3 | D7: 2 | E7: 1 | F7: 2.4 | G7: 2.4 | H7: 1.2 | I7: 6 | J7: 4 | K7: 2 | L7: 3.6 | M7: 2.4
A8: 7 | B8: 7 | C8: 3 | D8: 3 | E8: 1 | F8: 2.8 | G8: 2.8 | H8: 1.4 | I8: 7 | J8: 4 | K8: 3 | L8: 4.2 | M8: 2.8
A9: 8 | B9: 8 | C9: 3 | D9: 3 | E9: 2 | F9: 3.2 | G9: 3.2 | H9: 1.6 | I9: 8 | J9: 5 | K9: 3 | L9: 4.8 | M9: 3.2
A10: 9 | B10: 9 | C10: 4 | D10: 3 | E10: 2 | F10: 3.6 | G10: 3.6 | H10: 1.8 | I10: 9 | J10: 5 | K10: 4 | L10: 5.4 | M10: 3.6
A11: 10 | B11: 10 | C11: 4 | D11: 4 | E11: 2 | F11: 4 | G11: 4 | H11: 2 | I11: 10 | J11: 6 | K11: 4 | L11: 6 | M11: 4
A12: 11 | B12: 11 | C12: 5 | D12: 4 | E12: 2 | F12: 4.4 | G12: 4.4 | H12: 2.2 | I12: 11 | J12: 7 | K12: 4 | L12: 6.6 | M12: 4.4
A13: 12 | B13: 12 | C13: 5 | D13: 5 | E13: 2 | F13: 4.8 | G13: 4.8 | H13: 2.4 | I13: 12 | J13: 7 | K13: 5 | L13: 7.2 | M13: 4.8
A14: 13 | B14: 13 | C14: 5 | D14: 5 | E14: 3 | F14: 5.2 | G14: 5.2 | H14: 2.6 | I14: 13 | J14: 8 | K14: 5 | L14: 7.8 | M14: 5.2
A15: 14 | B15: 14 | C15: 6 | D15: 5 | E15: 3 | F15: 5.6 | G15: 5.6 | H15: 2.8 | I15: 14 | J15: 8 | K15: 6 | L15: 8.4 | M15: 5.6
A16: 15 | B16: 15 | C16: 6 | D16: 6 | E16: 3 | F16: 6 | G16: 6 | H16: 3 | I16: 15 | J16: 9 | K16: 6 | L16: 9 | M16: 6
A17: 16 | B17: 16 | C17: 7 | D17: 6 | E17: 3 | F17: 6.4 | G17: 6.4 | H17: 3.2 | I17: 16 | J17: 10 | K17: 6 | L17: 9.6 | M17: 6.4
A18: 17 | B18: 17 | C18: 7 | D18: 7 | E18: 3 | F18: 6.8 | G18: 6.8 | H18: 3.4 | I18: 17 | J18: 10 | K18: 7 | L18: =I18*0.6 -> 10.2 | M18: =I18*0.4 -> 6.8
A19: 18 | B19: 18 | C19: 7 | D19: 7 | E19: 4 | F19: =B19*0.4 -> 7.2 | G19: 7.2 | H19: =B19*0.2 -> 3.6 | I19: 18 | J19: 11 | K19: 7 | L19: 10.8 | M19: 7.2
A20: 19 | B20: 19 | C20: 8 | D20: 7 | E20: 4 | F20: =B20*0.4 -> 7.6 | G20: 7.6 | H20: =B20*0.2 -> 3.8 | I20: 19 | J20: 11 | K20: 8 | L20: 11.4 | M20: 7.6
A21: 20 | B21: 20 | C21: 8 | D21: 8 | E21: 4 | F21: 8 | G21: 8 | H21: 4 | I21: 20 | J21: 12 | K21: 8 | L21: 12 | M21: 8
A22: 21 | B22: 21 | C22: 9 | D22: 8 | E22: 4 | F22: =B22*0.4 -> 8.4 | G22: 8.4 | H22: =B22*0.2 -> 4.2 | I22: 21 | J22: 13 | K22: 8 | L22: 12.6 | M22: 8.4
A23: 22 | B23: 22 | C23: 9 | D23: 9 | E23: 4 | F23: 8.8 | G23: 8.8 | H23: 4.4 | I23: 22 | J23: 13 | K23: 9 | L23: 13.2 | M23: 8.8
A24: 23 | B24: 23 | C24: 9 | D24: 9 | E24: 5 | F24: =B24*0.4 -> 9.2 | G24: 9.2 | H24: =B24*0.2 -> 4.6 | I24: 23 | J24: 13.8 | K24: 9.2 | L24: 13.8 | M24: 9.2
A25: 24 | B25: 24 | C25: 10 | D25: 9 | E25: 5 | F25: 9.6 | G25: 9.6 | H25: 4.8 | I25: 24 | J25: 14.4 | K25: 9.6 | L25: 14.4 | M25: 9.6
A26: 25 | B26: 25 | C26: 10 | D26: 10 | E26: 5 | F26: =B26*0.4 -> 10 | G26: 10 | H26: =B26*0.2 -> 5 | I26: 25 | J26: 15 | K26: 10 | L26: 15 | M26: 10
A27: 26 | B27: 26 | C27: 11 | D27: 10 | E27: 5 | F27: 10.4 | G27: 10.4 | H27: 5.2 | I27: 26 | J27: 15.6 | K27: 10.4 | L27: 15.6 | M27: 10.4
A28: 27 | B28: 27 | C28: 11 | D28: 11 | E28: 5 | F28: =B28*0.4 -> 10.8 | G28: 10.8 | H28: =B28*0.2 -> 5.4 | I28: 27 | J28: 16.2 | K28: 10.8 | L28: 16.2 | M28: 10.8
A29: 28 | B29: 28 | C29: 11 | D29: 11 | E29: 6 | F29: 11.2 | G29: 11.2 | H29: 5.6 | I29: 28 | J29: 16.8 | K29: 11.2 | L29: 16.8 | M29: 11.2
A30: 29 | B30: 29 | C30: 12 | D30: 11 | E30: 6 | F30: =B30*0.4 -> 11.6 | G30: 11.6 | H30: =B30*0.2 -> 5.8 | I30: 29 | J30: 17.4 | K30: 11.6 | L30: 17.4 | M30: 11.6
A31: 30 | B31: 30 | C31: 12 | D31: 12 | E31: 6 | F31: =B31*0.4 -> 12 | G31: =B31*0.4 -> 12 | H31: =B31*0.2 -> 6 | I31: 30 | J31: 18 | K31: 12 | L31: 18 | M31: 12
A32: 31 | B32: 31 | C32: 13 | D32: 12 | E32: 6 | F32: 12.4 | G32: 12.4 | H32: 6.2 | I32: 31 | J32: 18.6 | K32: 12.4 | L32: 18.6 | M32: 12.4
A33: 32 | B33: 32 | C33: 13 | D33: 13 | E33: 6 | F33: 12.8 | G33: 12.8 | H33: 6.4 | I33: 32 | J33: 19.2 | K33: 12.8 | L33: 19.2 | M33: 12.8
A34: 33 | B34: 33 | C34: 13 | D34: 13 | E34: 7 | F34: 13.2 | G34: 13.2 | H34: 6.6 | I34: 33 | J34: 19.8 | K34: 13.2 | L34: 19.8 | M34: 13.2
A35: 34 | B35: 34 | C35: 14 | D35: 13 | E35: 7 | F35: 13.6 | G35: 13.6 | H35: 6.8 | I35: 34 | J35: 20.4 | K35: 13.6 | L35: 20.4 | M35: 13.6
A36: 35 | B36: 35 | C36: 14 | D36: 14 | E36: 7 | F36: 14 | G36: 14 | H36: 7 | I36: 35 | J36: 21 | K36: 14 | L36: 21 | M36: 14
A37: 36 | B37: 36 | C37: 15 | D37: 14 | E37: 7 | F37: 14.4 | G37: 14.4 | H37: 7.2 | I37: 36 | J37: 21.6 | K37: 14.4 | L37: 21.6 | M37: 14.4
A38: 37 | B38: 37 | C38: 15 | D38: 15 | E38: 7 | F38: 14.8 | G38: 14.8 | H38: 7.4 | I38: 37 | J38: 22.2 | K38: 14.8 | L38: 22.2 | M38: 14.8
A39: 38 | B39: 38 | C39: 15 | D39: 15 | E39: 8 | F39: 15.2 | G39: 15.2 | H39: 7.6 | I39: 38 | J39: 22.8 | K39: 15.2 | L39: 22.8 | M39: 15.2
A40: 39 | B40: 39 | C40: 16 | D40: 15 | E40: 8 | F40: 15.6 | G40: 15.6 | H40: 7.8 | I40: 39 | J40: 23.4 | K40: 15.6 | L40: 23.4 | M40: 15.6
A41: 40 | B41: 40 | C41: 16 | D41: 16 | E41: 8 | F41: 16 | G41: 16 | H41: 8 | I41: 40 | J41: 24 | K41: 16 | L41: 24 | M41: 16
A42: 41 | B42: 41 | C42: 17 | D42: 16 | E42: 8 | F42: 16.4 | G42: 16.4 | H42: 8.2 | I42: 41 | J42: 24.6 | K42: 16.4 | L42: 24.6 | M42: 16.4
A43: 42 | B43: 42 | C43: 17 | D43: 17 | E43: 8 | F43: 16.8 | G43: 16.8 | H43: 8.4 | I43: 42 | J43: 25.2 | K43: 16.8 | L43: 25.2 | M43: 16.8
A44: 43 | B44: 43 | C44: 17 | D44: 17 | E44: 9 | F44: 17.2 | G44: 17.2 | H44: 8.6 | I44: 43 | J44: 25.8 | K44: 17.2 | L44: 25.8 | M44: 17.2
A45: 44 | B45: 44 | C45: 18 | D45: 17 | E45: 9 | F45: 17.6 | G45: 17.6 | H45: 8.8 | I45: 44 | J45: 26.4 | K45: 17.6 | L45: 26.4 | M45: 17.6
A46: 45 | B46: 45 | C46: 18 | D46: 18 | E46: 9 | F46: 18 | G46: 18 | H46: 9 | I46: 45 | J46: 27 | K46: 18 | L46: 27 | M46: 18
A47: 46 | B47: 46 | C47: 19 | D47: 18 | E47: 9 | F47: 18.4 | G47: 18.4 | H47: 9.2 | I47: 46 | J47: 27.6 | K47: 18.4 | L47: 27.6 | M47: 18.4
A48: 47 | B48: 47 | C48: 19 | D48: 19 | E48: 9 | F48: 18.8 | G48: 18.8 | H48: 9.4 | I48: 47 | J48: 28.2 | K48: 18.8 | L48: 28.2 | M48: 18.8
A49: 48 | B49: 48 | C49: 19 | D49: 19 | E49: 10 | F49: 19.2 | G49: 19.2 | H49: 9.6 | I49: 48 | J49: 28.8 | K49: 19.2 | L49: 28.8 | M49: 19.2
A50: 49 | B50: 49 | C50: 20 | D50: 19 | E50: 10 | F50: 19.6 | G50: 19.6 | H50: 9.8 | I50: 49 | J50: 29.4 | K50: 19.6 | L50: 29.4 | M50: 19.6
A51: 50 | B51: 50 | C51: 20 | D51: 20 | E51: 10 | F51: 20 | G51: 20 | H51: 10 | I51: 50 | J51: 30 | K51: 20 | L51: 30 | M51: 20
A52: 51 | B52: 51 | C52: 21 | D52: 20 | E52: 10 | F52: 20.4 | G52: 20.4 | H52: 10.2 | I52: 51 | J52: 30.6 | K52: 20.4 | L52: 30.6 | M52: 20.4
A53: 52 | B53: 52 | C53: 21 | D53: 21 | E53: 10 | F53: 20.8 | G53: 20.8 | H53: 10.4 | I53: 52 | J53: 31.2 | K53: 20.8 | L53: 31.2 | M53: 20.8
A54: 53 | B54: 53 | C54: 21 | D54: 21 | E54: 11 | F54: 21.2 | G54: 21.2 | H54: 10.6 | I54: 53 | J54: 31.8 | K54: 21.2 | L54: 31.8 | M54: 21.2
A55: 54 | B55: 54 | C55: 22 | D55: 21 | E55: 11 | F55: 21.6 | G55: 21.6 | H55: 10.8 | I55: 54 | J55: 32.4 | K55: 21.6 | L55: 32.4 | M55: 21.6
A56: 55 | B56: 55 | C56: 22 | D56: 22 | E56: 11 | F56: 22 | G56: 22 | H56: 11 | I56: 55 | J56: 33 | K56: 22 | L56: 33 | M56: 22
A57: 56 | B57: 56 | C57: 23 | D57: 22 | E57: 11 | F57: 22.4 | G57: 22.4 | H57: 11.2 | I57: 56 | J57: 33.6 | K57: 22.4 | L57: 33.6 | M57: 22.4
A58: 57 | B58: 57 | C58: 23 | D58: 23 | E58: 11 | F58: 22.8 | G58: 22.8 | H58: 11.4 | I58: 57 | J58: 34.2 | K58: 22.8 | L58: 34.2 | M58: 22.8
A59: 58 | B59: 58 | C59: 23 | D59: 23 | E59: 12 | F59: 23.2 | G59: 23.2 | H59: 11.6 | I59: 58 | J59: 34.8 | K59: 23.2 | L59: 34.8 | M59: 23.2
A60: 59 | B60: 59 | C60: 24 | D60: 23 | E60: 12 | F60: 23.6 | G60: 23.6 | H60: 11.8 | I60: 59 | J60: 35.4 | K60: 23.6 | L60: 35.4 | M60: 23.6
A61: 60 | B61: 60 | C61: 24 | D61: 24 | E61: 12 | F61: 24 | G61: 24 | H61: 12 | I61: 60 | J61: 36 | K61: 24 | L61: 36 | M61: 24
A62: 61 | B62: 61 | C62: 25 | D62: 24 | E62: 12 | F62: 24.4 | G62: 24.4 | H62: 12.2 | I62: 61 | J62: 36.6 | K62: 24.4 | L62: 36.6 | M62: 24.4
A63: 62 | B63: 62 | C63: 25 | D63: 25 | E63: 12 | F63: 24.8 | G63: 24.8 | H63: 12.4 | I63: 62 | J63: 37.2 | K63: 24.8 | L63: 37.2 | M63: 24.8
A64: 63 | B64: 63 | C64: 25 | D64: 25 | E64: 13 | F64: 25.2 | G64: 25.2 | H64: 12.6 | I64: 63 | J64: 37.8 | K64: 25.2 | L64: 37.8 | M64: 25.2
A65: 64 | B65: 64 | C65: 26 | D65: 25 | E65: 13 | F65: 25.6 | G65: 25.6 | H65: 12.8 | I65: 64 | J65: 38.4 | K65: 25.6 | L65: 38.4 | M65: 25.6
A66: 65 | B66: 65 | C66: 26 | D66: 26 | E66: 13 | F66: 26 | G66: 26 | H66: 13 | I66: 65 | J66: 39 | K66: 26 | L66: 39 | M66: 26
A67: =C67+D67+E67 -> 66 | B67: 66 | C67: 27 | D67: 26 | E67: 13 | F67: 26.4 | G67: 26.4 | H67: 13.2 | I67: 66 | J67: 39.6 | K67: 26.4 | L67: 39.6 | M67: 26.4
A68: 67 | B68: =1+B67 -> 67 | C68: 27 | D68: 27 | E68: 13 | F68: 26.8 | G68: 26.8 | H68: 13.4 | I68: =1+I67 -> 67 | J68: 40.2 | K68: 26.8 | L68: 40.2 | M68: 26.8
A69: 68 | B69: 68 | C69: 27 | D69: 27 | E69: 14 | F69: 27.2 | G69: 27.2 | H69: 13.6 | I69: 68 | J69: 40.8 | K69: 27.2 | L69: 40.8 | M69: 27.2
A70: 69 | B70: 69 | C70: 28 | D70: 27 | E70: 14 | F70: 27.6 | G70: 27.6 | H70: 13.8 | I70: 69 | J70: 41.4 | K70: 27.6 | L70: 41.4 | M70: 27.6
A71: 70 | B71: 70 | C71: 28 | D71: 28 | E71: 14 | F71: 28 | G71: 28 | H71: 14 | I71: 70 | J71: 42 | K71: 28 | L71: 42 | M71: 28
A72: 71 | B72: 71 | C72: 29 | D72: 28 | E72: 14 | F72: 28.4 | G72: 28.4 | H72: 14.2 | I72: 71 | J72: 42.6 | K72: 28.4 | L72: 42.6 | M72: 28.4
A73: 72 | B73: 72 | C73: 29 | D73: 29 | E73: 14 | F73: 28.8 | G73: 28.8 | H73: 14.4 | I73: 72 | J73: 43.2 | K73: 28.8 | L73: 43.2 | M73: 28.8
A74: 73 | B74: 73 | C74: 29 | D74: 29 | E74: 15 | F74: 29.2 | G74: 29.2 | H74: 14.6 | I74: 73 | J74: 43.8 | K74: 29.2 | L74: 43.8 | M74: 29.2
A75: 74 | B75: 74 | C75: 30 | D75: 29 | E75: 15 | F75: 29.6 | G75: 29.6 | H75: 14.8 | I75: 74 | J75: 44.4 | K75: 29.6 | L75: 44.4 | M75: 29.6
A76: 75 | B76: 75 | C76: 30 | D76: 30 | E76: 15 | F76: 30 | G76: 30 | H76: 15 | I76: 75 | J76: 45 | K76: 30 | L76: 45 | M76: 30
A77: 76 | B77: 76 | C77: 31 | D77: 30 | E77: 15 | F77: 30.4 | G77: 30.4 | H77: 15.2 | I77: 76 | J77: 45.6 | K77: 30.4 | L77: 45.6 | M77: 30.4
A78: 77.4 | B78: 77 | C78: 31 | D78: 31 | E78: 15.4 | F78: 30.8 | G78: 30.8 | H78: 15.4 | I78: 77 | J78: 46.2 | K78: 30.8 | L78: 46.2 | M78: 30.8
A79: 77.6 | B79: 78 | C79: 31 | D79: 31 | E79: 15.6 | F79: 31.2 | G79: 31.2 | H79: 15.6 | I79: 78 | J79: 46.8 | K79: 31.2 | L79: 46.8 | M79: 31.2
A80: 78.8 | B80: 79 | C80: 32 | D80: 31 | E80: 15.8 | F80: 31.6 | G80: 31.6 | H80: 15.8 | I80: 79 | J80: 47.4 | K80: 31.6 | L80: 47.4 | M80: 31.6
A81: 80 | B81: 80 | C81: 32 | D81: 32 | E81: 16 | F81: 32 | G81: 32 | H81: 16 | I81: 80 | J81: 48 | K81: 32 | L81: 48 | M81: 32
A82: 81.2 | B82: 81 | C82: 33 | D82: 32 | E82: 16.2 | F82: 32.4 | G82: 32.4 | H82: 16.2 | I82: 81 | J82: 48.6 | K82: 32.4 | L82: =I82*0.6 -> 48.6 | M82: =I82*0.4 -> 32.4
A83: 82.4 | B83: 82 | C83: 33 | D83: 33 | E83: 16.4 | F83: 32.8 | G83: 32.8 | H83: 16.4 | I83: 82 | J83: 49.2 | K83: 32.8 | L83: 49.2 | M83: 32.8
A84: 82.6 | B84: 83 | C84: 33 | D84: 33 | E84: 16.6 | F84: 33.2 | G84: 33.2 | H84: 16.6 | I84: 83 | J84: 49.8 | K84: 33.2 | L84: 49.8 | M84: 33.2
A85: 83.8 | B85: 84 | C85: 34 | D85: 33 | E85: 16.8 | F85: 33.6 | G85: 33.6 | H85: 16.8 | I85: 84 | J85: 50.4 | K85: 33.6 | L85: 50.4 | M85: 33.6
A86: 85 | B86: 85 | C86: 34 | D86: 34 | E86: 17 | F86: 34 | G86: 34 | H86: 17 | I86: 85 | J86: 51 | K86: 34 | L86: 51 | M86: 34
A87: 86.2 | B87: 86 | C87: 35 | D87: 34 | E87: 17.2 | F87: 34.4 | G87: 34.4 | H87: 17.2 | I87: 86 | J87: 51.6 | K87: 34.4 | L87: 51.6 | M87: 34.4
A88: 87.4 | B88: 87 | C88: 35 | D88: 35 | E88: 17.4 | F88: 34.8 | G88: 34.8 | H88: 17.4 | I88: 87 | J88: 52.2 | K88: 34.8 | L88: 52.2 | M88: 34.8
A89: 87.6 | B89: 88 | C89: 35 | D89: 35 | E89: 17.6 | F89: 35.2 | G89: 35.2 | H89: 17.6 | I89: 88 | J89: 52.8 | K89: 35.2 | L89: 52.8 | M89: 35.2
A90: 88.8 | B90: 89 | C90: 36 | D90: 35 | E90: 17.8 | F90: 35.6 | G90: 35.6 | H90: 17.8 | I90: 89 | J90: 53.4 | K90: 35.6 | L90: 53.4 | M90: 35.6
A91: 90 | B91: 90 | C91: 36 | D91: 36 | E91: 18 | F91: 36 | G91: 36 | H91: 18 | I91: 90 | J91: 54 | K91: 36 | L91: 54 | M91: 36
A92: 91.2 | B92: 91 | C92: 37 | D92: 36 | E92: 18.2 | F92: 36.4 | G92: 36.4 | H92: 18.2 | I92: 91 | J92: 54.6 | K92: 36.4 | L92: 54.6 | M92: 36.4
A93: 92.4 | B93: 92 | C93: 37 | D93: 37 | E93: 18.4 | F93: 36.8 | G93: 36.8 | H93: 18.4 | I93: 92 | J93: 55.2 | K93: 36.8 | L93: 55.2 | M93: 36.8
A94: 92.6 | B94: 93 | C94: 37 | D94: 37 | E94: 18.6 | F94: 37.2 | G94: 37.2 | H94: 18.6 | I94: 93 | J94: 55.8 | K94: 37.2 | L94: 55.8 | M94: 37.2
A95: 93.8 | B95: 94 | C95: 38 | D95: 37 | E95: 18.8 | F95: =B95*0.4 -> 37.6 | G95: =B95*0.4 -> 37.6 | H95: =B95*0.2 -> 18.8 | I95: 94 | J95: 56.4 | K95: 37.6 | L95: 56.4 | M95: 37.6
A96: 95 | B96: 95 | C96: 38 | D96: 38 | E96: 19 | F96: 38 | G96: 38 | H96: 19 | I96: 95 | J96: 57 | K96: 38 | L96: 57 | M96: 38
A97: 96.2 | B97: 96 | C97: 39 | D97: 38 | E97: 19.2 | F97: 38.4 | G97: 38.4 | H97: 19.2 | I97: 96 | J97: 57.6 | K97: 38.4 | L97: 57.6 | M97: 38.4
A98: 97.4 | B98: 97 | C98: 39 | D98: 39 | E98: 19.4 | F98: 38.8 | G98: 38.8 | H98: 19.4 | I98: 97 | J98: 58.2 | K98: 38.8 | L98: 58.2 | M98: 38.8
A99: 97.6 | B99: 98 | C99: 39 | D99: 39 | E99: 19.6 | F99: 39.2 | G99: 39.2 | H99: 19.6 | I99: 98 | J99: 58.8 | K99: 39.2 | L99: 58.8 | M99: 39.2
A100: 98.8 | B100: 99 | C100: 40 | D100: 39 | E100: 19.8 | F100: 39.6 | G100: 39.6 | H100: 19.8 | I100: 99 | J100: 59.4 | K100: 39.6 | L100: 59.4 | M100: 39.6
A101: 100 | B101: 100 | C101: 40 | D101: 40 | E101: 20 | F101: 40 | G101: 40 | H101: 20 | I101: 100 | J101: 60 | K101: 40 | L101: 60 | M101: 40
A102: 101.2 | B102: 101 | C102: 41 | D102: 40 | E102: 20.2 | F102: 40.4 | G102: 40.4 | H102: 20.2 | I102: 101 | J102: 60.6 | K102: 40.4 | L102: 60.6 | M102: 40.4
A103: 102.4 | B103: 102 | C103: 41 | D103: 41 | E103: 20.4 | F103: 40.8 | G103: 40.8 | H103: 20.4 | I103: 102 | J103: 61.2 | K103: 40.8 | L103: 61.2 | M103: 40.8
A104: 102.6 | B104: 103 | C104: 41 | D104: 41 | E104: 20.6 | F104: 41.2 | G104: 41.2 | H104: 20.6 | I104: 103 | J104: 61.8 | K104: 41.2 | L104: 61.8 | M104: 41.2
A105: 103.8 | B105: 104 | C105: 42 | D105: 41 | E105: 20.8 | F105: 41.6 | G105: 41.6 | H105: 20.8 | I105: 104 | J105: 62.4 | K105: 41.6 | L105: 62.4 | M105: 41.6
A106: 105 | B106: 105 | C106: 42 | D106: 42 | E106: 21 | F106: 42 | G106: 42 | H106: 21 | I106: 105 | J106: 63 | K106: 42 | L106: 63 | M106: 42
A107: 106.2 | B107: 106 | C107: 43 | D107: 42 | E107: 21.2 | F107: 42.4 | G107: 42.4 | H107: 21.2 | I107: 106 | J107: 63.6 | K107: 42.4 | L107: 63.6 | M107: 42.4
A108: 107.4 | B108: 107 | C108: 43 | D108: 43 | E108: 21.4 | F108: 42.8 | G108: 42.8 | H108: 21.4 | I108: 107 | J108: 64.2 | K108: 42.8 | L108: 64.2 | M108: 42.8
A109: 107.6 | B109: 108 | C109: 43 | D109: 43 | E109: 21.6 | F109: 43.2 | G109: 43.2 | H109: 21.6 | I109: 108 | J109: 64.8 | K109: 43.2 | L109: 64.8 | M109: 43.2
A110: 108.8 | B110: 109 | C110: 44 | D110: 43 | E110: 21.8 | F110: 43.6 | G110: 43.6 | H110: 21.8 | I110: 109 | J110: 65.4 | K110: 43.6 | L110: 65.4 | M110: 43.6
A111: 110 | B111: 110 | C111: 44 | D111: 44 | E111: 22 | F111: 44 | G111: 44 | H111: 22 | I111: 110 | J111: 66 | K111: 44 | L111: 66 | M111: 44
A112: 111.2 | B112: 111 | C112: 45 | D112: 44 | E112: 22.2 | F112: 44.4 | G112: 44.4 | H112: 22.2 | I112: 111 | J112: 66.6 | K112: 44.4 | L112: 66.6 | M112: 44.4
A113: 112.4 | B113: 112 | C113: 45 | D113: 45 | E113: 22.4 | F113: 44.8 | G113: 44.8 | H113: 22.4 | I113: 112 | J113: 67.2 | K113: 44.8 | L113: 67.2 | M113: 44.8
A114: 112.6 | B114: 113 | C114: 45 | D114: 45 | E114: 22.6 | F114: 45.2 | G114: 45.2 | H114: 22.6 | I114: 113 | J114: 67.8 | K114: 45.2 | L114: 67.8 | M114: 45.2
A115: 113.8 | B115: 114 | C115: 46 | D115: 45 | E115: 22.8 | F115: 45.6 | G115: 45.6 | H115: 22.8 | I115: 114 | J115: 68.4 | K115: 45.6 | L115: 68.4 | M115: 45.6
A116: 115 | B116: 115 | C116: 46 | D116: 46 | E116: 23 | F116: 46 | G116: 46 | H116: 23 | I116: 115 | J116: 69 | K116: 46 | L116: 69 | M116: 46
A117: 116.2 | B117: 116 | C117: 47 | D117: 46 | E117: 23.2 | F117: 46.4 | G117: 46.4 | H117: 23.2 | I117: 116 | J117: 69.6 | K117: 46.4 | L117: 69.6 | M117: 46.4
A118: 117.4 | B118: 117 | C118: 47 | D118: 47 | E118: 23.4 | F118: 46.8 | G118: 46.8 | H118: 23.4 | I118: 117 | J118: 70.2 | K118: 46.8 | L118: 70.2 | M118: 46.8
A119: 117.6 | B119: 118 | C119: 47 | D119: 47 | E119: 23.6 | F119: 47.2 | G119: 47.2 | H119: 23.6 | I119: 118 | J119: 70.8 | K119: 47.2 | L119: 70.8 | M119: 47.2
A120: 118.8 | B120: 119 | C120: 48 | D120: 47 | E120: 23.8 | F120: 47.6 | G120: 47.6 | H120: 23.8 | I120: 119 | J120: 71.4 | K120: 47.6 | L120: 71.4 | M120: 47.6
A121: 120 | B121: 120 | C121: 48 | D121: 48 | E121: 24 | F121: 48 | G121: 48 | H121: 24 | I121: 120 | J121: 72 | K121: 48 | L121: 72 | M121: 48
A122: 121.2 | B122: 121 | C122: 49 | D122: 48 | E122: 24.2 | F122: 48.4 | G122: 48.4 | H122: 24.2 | I122: 121 | J122: 72.6 | K122: 48.4 | L122: 72.6 | M122: 48.4
A123: 122.4 | B123: 122 | C123: 49 | D123: 49 | E123: 24.4 | F123: 48.8 | G123: 48.8 | H123: 24.4 | I123: 122 | J123: 73.2 | K123: 48.8 | L123: 73.2 | M123: 48.8
A124: 122.6 | B124: 123 | C124: 49 | D124: 49 | E124: 24.6 | F124: 49.2 | G124: 49.2 | H124: 24.6 | I124: 123 | J124: 73.8 | K124: 49.2 | L124: 73.8 | M124: 49.2
A125: 123.8 | B125: 124 | C125: 50 | D125: 49 | E125: 24.8 | F125: 49.6 | G125: 49.6 | H125: 24.8 | I125: 124 | J125: 74.4 | K125: 49.6 | L125: 74.4 | M125: 49.6
A126: 125 | B126: 125 | C126: 50 | D126: 50 | E126: 25 | F126: 50 | G126: 50 | H126: 25 | I126: 125 | J126: 75 | K126: 50 | L126: 75 | M126: 50
A127: 126.2 | B127: 126 | C127: 51 | D127: 50 | E127: 25.2 | F127: 50.4 | G127: 50.4 | H127: 25.2 | I127: 126 | J127: 75.6 | K127: 50.4 | L127: 75.6 | M127: 50.4
A128: 127.4 | B128: 127 | C128: 51 | D128: 51 | E128: 25.4 | F128: 50.8 | G128: 50.8 | H128: 25.4 | I128: 127 | J128: 76.2 | K128: 50.8 | L128: 76.2 | M128: 50.8
A129: 127.6 | B129: 128 | C129: 51 | D129: 51 | E129: 25.6 | F129: 51.2 | G129: 51.2 | H129: 25.6 | I129: 128 | J129: 76.8 | K129: 51.2 | L129: 76.8 | M129: 51.2
A130: 128.8 | B130: 129 | C130: 52 | D130: 51 | E130: 25.8 | F130: 51.6 | G130: 51.6 | H130: 25.8 | I130: 129 | J130: 77.4 | K130: 51.6 | L130: 77.4 | M130: 51.6
A131: =C131+D131+E131 -> 130 | B131: 130 | C131: 52 | D131: 52 | E131: 26 | F131: 52 | G131: 52 | H131: 26 | I131: 130 | J131: 78 | K131: 52 | L131: 78 | M131: 52
A132: 131.2 | B132: =1+B131 -> 131 | C132: 53 | D132: 52 | E132: 26.2 | F132: 52.4 | G132: 52.4 | H132: 26.2 | I132: =1+I131 -> 131 | J132: 78.6 | K132: 52.4 | L132: 78.6 | M132: 52.4
A133: 132.4 | B133: 132 | C133: 53 | D133: 53 | E133: 26.4 | F133: 52.8 | G133: 52.8 | H133: 26.4 | I133: 132 | J133: 79.2 | K133: 52.8 | L133: 79.2 | M133: 52.8
A134: 132.6 | B134: 133 | C134: 53 | D134: 53 | E134: 26.6 | F134: 53.2 | G134: 53.2 | H134: 26.6 | I134: 133 | J134: 79.8 | K134: 53.2 | L134: 79.8 | M134: 53.2
A135: 133.8 | B135: 134 | C135: 54 | D135: 53 | E135: 26.8 | F135: 53.6 | G135: 53.6 | H135: 26.8 | I135: 134 | J135: 80.4 | K135: 53.6 | L135: 80.4 | M135: 53.6
A136: 135 | B136: 135 | C136: 54 | D136: 54 | E136: 27 | F136: 54 | G136: 54 | H136: 27 | I136: 135 | J136: 81 | K136: 54 | L136: 81 | M136: 54
A137: 136.2 | B137: 136 | C137: 55 | D137: 54 | E137: 27.2 | F137: 54.4 | G137: 54.4 | H137: 27.2 | I137: 136 | J137: 81.6 | K137: 54.4 | L137: 81.6 | M137: 54.4
A138: 137.4 | B138: 137 | C138: 55 | D138: 55 | E138: 27.4 | F138: 54.8 | G138: 54.8 | H138: 27.4 | I138: 137 | J138: 82.2 | K138: 54.8 | L138: 82.2 | M138: 54.8
A139: 137.6 | B139: 138 | C139: 55 | D139: 55 | E139: 27.6 | F139: 55.2 | G139: 55.2 | H139: 27.6 | I139: 138 | J139: 82.8 | K139: 55.2 | L139: 82.8 | M139: 55.2
A140: 138.8 | B140: 139 | C140: 56 | D140: 55 | E140: 27.8 | F140: 55.6 | G140: 55.6 | H140: 27.8 | I140: 139 | J140: 83.4 | K140: 55.6 | L140: 83.4 | M140: 55.6
A141: 140 | B141: 140 | C141: 56 | D141: 56 | E141: 28 | F141: 56 | G141: 56 | H141: 28 | I141: 140 | J141: 84 | K141: 56 | L141: 84 | M141: 56
A142: 141.2 | B142: 141 | C142: 57 | D142: 56 | E142: 28.2 | F142: 56.4 | G142: 56.4 | H142: 28.2 | I142: 141 | J142: 84.6 | K142: 56.4 | L142: 84.6 | M142: 56.4
A143: 142.4 | B143: 142 | C143: 57 | D143: 57 | E143: 28.4 | F143: 56.8 | G143: 56.8 | H143: 28.4 | I143: 142 | J143: 85.2 | K143: 56.8 | L143: 85.2 | M143: 56.8
A144: 142.6 | B144: 143 | C144: 57 | D144: 57 | E144: 28.6 | F144: 57.2 | G144: 57.2 | H144: 28.6 | I144: 143 | J144: 85.8 | K144: 57.2 | L144: 85.8 | M144: 57.2
A145: 143.8 | B145: 144 | C145: 58 | D145: 57 | E145: 28.8 | F145: 57.6 | G145: 57.6 | H145: 28.8 | I145: 144 | J145: 86.4 | K145: 57.6 | L145: 86.4 | M145: 57.6
A146: 145 | B146: 145 | C146: 58 | D146: 58 | E146: 29 | F146: 58 | G146: 58 | H146: 29 | I146: 145 | J146: 87 | K146: 58 | L146: =I146*0.6 -> 87 | M146: =I146*0.4 -> 58
A147: 146.2 | B147: 146 | C147: 59 | D147: 58 | E147: 29.2 | F147: 58.4 | G147: 58.4 | H147: 29.2 | I147: 146 | J147: 87.6 | K147: 58.4 | L147: 87.6 | M147: 58.4
A148: 147.4 | B148: 147 | C148: 59 | D148: 59 | E148: 29.4 | F148: 58.8 | G148: 58.8 | H148: 29.4 | I148: 147 | J148: 88.2 | K148: 58.8 | L148: 88.2 | M148: 58.8
A149: 147.6 | B149: 148 | C149: 59 | D149: 59 | E149: 29.6 | F149: 59.2 | G149: 59.2 | H149: 29.6 | I149: 148 | J149: 88.8 | K149: 59.2 | L149: 88.8 | M149: 59.2
A150: 148.8 | B150: 149 | C150: 60 | D150: 59 | E150: 29.8 | F150: 59.6 | G150: 59.6 | H150: 29.8 | I150: 149 | J150: 89.4 | K150: 59.6 | L150: 89.4 | M150: 59.6
A151: 150 | B151: 150 | C151: 60 | D151: 60 | E151: 30 | F151: 60 | G151: 60 | H151: 30 | I151: 150 | J151: 90 | K151: 60 | L151: 90 | M151: 60
A152: 151.2 | B152: 151 | C152: 61 | D152: 60 | E152: 30.2 | F152: 60.4 | G152: 60.4 | H152: 30.2 | I152: 151 | J152: 90.6 | K152: 60.4 | L152: 90.6 | M152: 60.4
A153: 152.4 | B153: 152 | C153: 61 | D153: 61 | E153: 30.4 | F153: 60.8 | G153: 60.8 | H153: 30.4 | I153: 152 | J153: 91.2 | K153: 60.8 | L153: 91.2 | M153: 60.8
A154: 152.6 | B154: 153 | C154: 61 | D154: 61 | E154: 30.6 | F154: 61.2 | G154: 61.2 | H154: 30.6 | I154: 153 | J154: 91.8 | K154: 61.2 | L154: 91.8 | M154: 61.2
A155: 153.8 | B155: 154 | C155: 62 | D155: 61 | E155: 30.8 | F155: 61.6 | G155: 61.6 | H155: 30.8 | I155: 154 | J155: 92.4 | K155: 61.6 | L155: 92.4 | M155: 61.6
A156: 155 | B156: 155 | C156: 62 | D156: 62 | E156: 31 | F156: 62 | G156: 62 | H156: 31 | I156: 155 | J156: 93 | K156: 62 | L156: 93 | M156: 62
A157: 156.2 | B157: 156 | C157: 63 | D157: 62 | E157: 31.2 | F157: 62.4 | G157: 62.4 | H157: 31.2 | I157: 156 | J157: 93.6 | K157: 62.4 | L157: 93.6 | M157: 62.4
A158: 157.4 | B158: 157 | C158: 63 | D158: 63 | E158: 31.4 | F158: 62.8 | G158: 62.8 | H158: 31.4 | I158: 157 | J158: 94.2 | K158: 62.8 | L158: 94.2 | M158: 62.8
A159: 157.6 | B159: 158 | C159: 63 | D159: 63 | E159: 31.6 | F159: =B159*0.4 -> 63.2 | G159: =B159*0.4 -> 63.2 | H159: =B159*0.2 -> 31.6 | I159: 158 | J159: 94.8 | K159: 63.2 | L159: 94.8 | M159: 63.2
A160: 158.8 | B160: 159 | C160: 64 | D160: 63 | E160: 31.8 | F160: 63.6 | G160: 63.6 | H160: 31.8 | I160: 159 | J160: 95.4 | K160: 63.6 | L160: 95.4 | M160: 63.6
A161: 160 | B161: 160 | C161: 64 | D161: 64 | E161: 32 | F161: 64 | G161: 64 | H161: 32 | I161: 160 | J161: 96 | K161: 64 | L161: 96 | M161: 64
A162: 161.2 | B162: 161 | C162: 65 | D162: 64 | E162: 32.2 | F162: 64.4 | G162: 64.4 | H162: 32.2 | I162: 161 | J162: 96.6 | K162: 64.4 | L162: 96.6 | M162: 64.4
A163: 162.4 | B163: 162 | C163: 65 | D163: 65 | E163: 32.4 | F163: 64.8 | G163: 64.8 | H163: 32.4 | I163: 162 | J163: 97.2 | K163: 64.8 | L163: 97.2 | M163: 64.8
A164: 162.6 | B164: 163 | C164: 65 | D164: 65 | E164: 32.6 | F164: 65.2 | G164: 65.2 | H164: 32.6 | I164: 163 | J164: 97.8 | K164: 65.2 | L164: 97.8 | M164: 65.2
A165: 163.8 | B165: 164 | C165: 66 | D165: 65 | E165: 32.8 | F165: 65.6 | G165: 65.6 | H165: 32.8 | I165: 164 | J165: 98.4 | K165: 65.6 | L165: 98.4 | M165: 65.6
A166: 165 | B166: 165 | C166: 66 | D166: 66 | E166: 33 | F166: 66 | G166: 66 | H166: 33 | I166: 165 | J166: 99 | K166: 66 | L166: 99 | M166: 66
A167: 166.2 | B167: 166 | C167: 67 | D167: 66 | E167: 33.2 | F167: 66.4 | G167: 66.4 | H167: 33.2 | I167: 166 | J167: 99.6 | K167: 66.4 | L167: 99.6 | M167: 66.4
A168: 167.4 | B168: 167 | C168: 67 | D168: 67 | E168: 33.4 | F168: 66.8 | G168: 66.8 | H168: 33.4 | I168: 167 | J168: 100.2 | K168: 66.8 | L168: 100.2 | M168: 66.8
A169: 167.6 | B169: 168 | C169: 67 | D169: 67 | E169: 33.6 | F169: 67.2 | G169: 67.2 | H169: 33.6 | I169: 168 | J169: 100.8 | K169: 67.2 | L169: 100.8 | M169: 67.2
A170: 168.8 | B170: 169 | C170: 68 | D170: 67 | E170: 33.8 | F170: 67.6 | G170: 67.6 | H170: 33.8 | I170: 169 | J170: 101.4 | K170: 67.6 | L170: 101.4 | M170: 67.6
A171: 170 | B171: 170 | C171: 68 | D171: 68 | E171: 34 | F171: 68 | G171: 68 | H171: 34 | I171: 170 | J171: 102 | K171: 68 | L171: 102 | M171: 68
A172: 171.2 | B172: 171 | C172: 69 | D172: 68 | E172: 34.2 | F172: 68.4 | G172: 68.4 | H172: 34.2 | I172: 171 | J172: 102.6 | K172: 68.4 | L172: 102.6 | M172: 68.4
A173: 172.4 | B173: 172 | C173: 69 | D173: 69 | E173: 34.4 | F173: 68.8 | G173: 68.8 | H173: 34.4 | I173: 172 | J173: 103.2 | K173: 68.8 | L173: 103.2 | M173: 68.8
A174: 172.6 | B174: 173 | C174: 69 | D174: 69 | E174: 34.6 | F174: 69.2 | G174: 69.2 | H174: 34.6 | I174: 173 | J174: 103.8 | K174: 69.2 | L174: 103.8 | M174: 69.2
A175: 173.8 | B175: 174 | C175: 70 | D175: 69 | E175: 34.8 | F175: 69.6 | G175: 69.6 | H175: 34.8 | I175: 174 | J175: 104.4 | K175: 69.6 | L175: 104.4 | M175: 69.6
A176: 175 | B176: 175 | C176: 70 | D176: 70 | E176: 35 | F176: 70 | G176: 70 | H176: 35 | I176: 175 | J176: 105 | K176: 70 | L176: 105 | M176: 70
A177: 176.2 | B177: 176 | C177: 71 | D177: 70 | E177: 35.2 | F177: 70.4 | G177: 70.4 | H177: 35.2 | I177: 176 | J177: 105.6 | K177: 70.4 | L177: 105.6 | M177: 70.4
A178: 177.4 | B178: 177 | C178: 71 | D178: 71 | E178: 35.4 | F178: 70.8 | G178: 70.8 | H178: 35.4 | I178: 177 | J178: 106.2 | K178: 70.8 | L178: 106.2 | M178: 70.8
A179: 177.6 | B179: 178 | C179: 71 | D179: 71 | E179: 35.6 | F179: 71.2 | G179: 71.2 | H179: 35.6 | I179: 178 | J179: 106.8 | K179: 71.2 | L179: 106.8 | M179: 71.2
A180: 178.8 | B180: 179 | C180: 72 | D180: 71 | E180: 35.8 | F180: 71.6 | G180: 71.6 | H180: 35.8 | I180: 179 | J180: 107.4 | K180: 71.6 | L180: 107.4 | M180: 71.6
A181: 180 | B181: 180 | C181: 72 | D181: 72 | E181: 36 | F181: 72 | G181: 72 | H181: 36 | I181: 180 | J181: 108 | K181: 72 | L181: 108 | M181: 72
A182: 181.2 | B182: 181 | C182: 73 | D182: 72 | E182: 36.2 | F182: 72.4 | G182: 72.4 | H182: 36.2 | I182: 181 | J182: 108.6 | K182: 72.4 | L182: 108.6 | M182: 72.4
A183: 182.4 | B183: 182 | C183: 73 | D183: 73 | E183: 36.4 | F183: 72.8 | G183: 72.8 | H183: 36.4 | I183: 182 | J183: 109.2 | K183: 72.8 | L183: 109.2 | M183: 72.8
A184: 182.6 | B184: 183 | C184: 73 | D184: 73 | E184: 36.6 | F184: 73.2 | G184: 73.2 | H184: 36.6 | I184: 183 | J184: 109.8 | K184: 73.2 | L184: 109.8 | M184: 73.2
A185: 183.8 | B185: 184 | C185: 74 | D185: 73 | E185: 36.8 | F185: 73.6 | G185: 73.6 | H185: 36.8 | I185: 184 | J185: 110.4 | K185: 73.6 | L185: 110.4 | M185: 73.6
A186: 185 | B186: 185 | C186: 74 | D186: 74 | E186: 37 | F186: 74 | G186: 74 | H186: 37 | I186: 185 | J186: 111 | K186: 74 | L186: 111 | M186: 74
A187: 186.2 | B187: 186 | C187: 75 | D187: 74 | E187: 37.2 | F187: 74.4 | G187: 74.4 | H187: 37.2 | I187: 186 | J187: 111.6 | K187: 74.4 | L187: 111.6 | M187: 74.4
A188: 187.4 | B188: 187 | C188: 75 | D188: 75 | E188: 37.4 | F188: 74.8 | G188: 74.8 | H188: 37.4 | I188: 187 | J188: 112.2 | K188: 74.8 | L188: 112.2 | M188: 74.8
A189: 187.6 | B189: 188 | C189: 75 | D189: 75 | E189: 37.6 | F189: 75.2 | G189: 75.2 | H189: 37.6 | I189: 188 | J189: 112.8 | K189: 75.2 | L189: 112.8 | M189: 75.2
A190: 188.8 | B190: 189 | C190: 76 | D190: 75 | E190: 37.8 | F190: 75.6 | G190: 75.6 | H190: 37.8 | I190: 189 | J190: 113.4 | K190: 75.6 | L190: 113.4 | M190: 75.6
A191: 190 | B191: 190 | C191: 76 | D191: 76 | E191: 38 | F191: 76 | G191: 76 | H191: 38 | I191: 190 | J191: 114 | K191: 76 | L191: 114 | M191: 76
A192: 191.2 | B192: 191 | C192: 77 | D192: 76 | E192: 38.2 | F192: 76.4 | G192: 76.4 | H192: 38.2 | I192: 191 | J192: 114.6 | K192: 76.4 | L192: 114.6 | M192: 76.4
A193: 192.4 | B193: 192 | C193: 77 | D193: 77 | E193: 38.4 | F193: 76.8 | G193: 76.8 | H193: 38.4 | I193: 192 | J193: 115.2 | K193: 76.8 | L193: 115.2 | M193: 76.8
A194: 192.6 | B194: 193 | C194: 77 | D194: 77 | E194: 38.6 | F194: 77.2 | G194: 77.2 | H194: 38.6 | I194: 193 | J194: 115.8 | K194: 77.2 | L194: 115.8 | M194: 77.2
A195: =C195+D195+E195 -> 193.8 | B195: 194 | C195: 78 | D195: 77 | E195: 38.8 | F195: 77.6 | G195: 77.6 | H195: 38.8 | I195: 194 | J195: 116.4 | K195: 77.6 | L195: 116.4 | M195: 77.6
A196: 195 | B196: =1+B195 -> 195 | C196: 78 | D196: 78 | E196: 39 | F196: 78 | G196: 78 | H196: 39 | I196: =1+I195 -> 195 | J196: 117 | K196: 78 | L196: 117 | M196: 78
A197: 196.2 | B197: 196 | C197: 79 | D197: 78 | E197: 39.2 | F197: 78.4 | G197: 78.4 | H197: 39.2 | I197: 196 | J197: 117.6 | K197: 78.4 | L197: 117.6 | M197: 78.4
A198: 197.4 | B198: 197 | C198: 79 | D198: 79 | E198: 39.4 | F198: 78.8 | G198: 78.8 | H198: 39.4 | I198: 197 | J198: 118.2 | K198: 78.8 | L198: 118.2 | M198: 78.8
A199: 197.6 | B199: 198 | C199: 79 | D199: 79 | E199: 39.6 | F199: 79.2 | G199: 79.2 | H199: 39.6 | I199: 198 | J199: 118.8 | K199: 79.2 | L199: 118.8 | M199: 79.2
A200: 198.8 | B200: 199 | C200: 80 | D200: 79 | E200: 39.8 | F200: 79.6 | G200: 79.6 | H200: 39.8 | I200: 199 | J200: 119.4 | K200: 79.6 | L200: 119.4 | M200: 79.6
... 101 more rows

Sheet Feuil2
D2: 11
D4: الأقدمية المطلوبة في ثلاث مدد | H4: الأقدمية المطلوبة في مدتين
D5: المدة الدنيا | E5: المدة المتوسطة | F5: المدة القصوى | H5: المدة الدنيا | I5: المدة المتوسطة
D6: 0.4 | E6: 0.4 | F6: 0.2 | H6: 0.6 | I6: 0.4
C7: عدد المترشحين حسب المدة | D7: =VLOOKUP(D2,Feuil1!B:E,2,FALSE) -> 5 | E7: =VLOOKUP(D2,Feuil1!B:E,3,FALSE) -> 4 | F7: =VLOOKUP(D2,Feuil1!B:E,4,FALSE) -> 2 | H7: =VLOOKUP(D2,Feuil1!I:K,2,FALSE) -> 7 | I7: =VLOOKUP(D2,Feuil1!I:K,3,FALSE) -> 4
C9: تاريخ آخر درجة | D9: تاريخ السريان | H9: تاريخ السريان
C10: 2012-04-11 | D10: =DATE(YEAR(C10)+2,MONTH(C10)+6,DAY(C10)-0) -> 2014-10-11 | E10: =DATE(YEAR(C10)+3,MONTH(C10)+0,DAY(C10)-0) -> 2015-04-11 | F10: =DATE(YEAR(C10)+3,MONTH(C10)+6,DAY(C10)-0) -> 2015-10-11 | H10: =DATE(YEAR(C10)+2,MONTH(C10)+6,DAY(C10)-0) -> 2014-10-11 | I10: =DATE(YEAR(C10)+3,MONTH(C10)+0,DAY(C10)-0) -> 2015-04-11
C12: يحتفظ بأقدمية إلى غاية 12/31 | D12: سنة | E12: شهر | F12: يوم
C13: 2015-12-31 | D13: =DATEDIF(C10,C13,"y") -> 3 | E13: =DATEDIF(C10,C13,"ym") -> 8 | F13: =DATEDIF(C10,C13,"md") -> 20

Sheet ورقة1
B1: عدد الموظفين | C1: الدرجة الدنيا | D1: الدرجة الوسطى | E1: الدرجة القصوى
B2: 1 | C2: 1
B3: 2 | C3: 1 | D3: 1
B4: 3 | C4: 1 | D4: 1 | E4: 1
B5: 4 | C5: 2 | D5: 1 | E5: 1
B6: 5 | C6: 2 | D6: 2 | E6: 1
B7: 6 | C7: 3 | D7: 2 | E7: 1
B8: 7 | C8: 3 | D8: 3 | E8: 1
B9: 8 | C9: 3 | D9: 3 | E9: 2
B10: 9 | C10: 4 | D10: 3 | E10: 2
B11: 10 | C11: 4 | D11: 4 | E11: 2
B12: 11 | C12: 5 | D12: 4 | E12: 2
B13: 12
B14: 13
B15: 14
B16: 15
B17: 16
B18: 17
B19: 18
B20: 19
B21: 20
B22: 21
B23: 22
B24: 23
B25: 24
B26: 25
B27: 26
B28: 27
B29: 28
B30: 29
B31: 30
B32: 31
B33: 32
B34: 33
B35: 34
B36: 35
B37: 36
B38: 37
B39: 38
B40: 39
B41: 40
B42: 41
B43: 42
B44: 43
B45: 44
B46: 45
B47: 46
B48: 47
B49: 48
B50: 49
B51: 50
B52: 51
B53: 52
B54: 53
B55: 54
B56: 55
B57: 56
B58: 57
B59: 58
B60: 59
B61: 60
B62: 61
B63: 62
B64: 63
B65: 64
B66: 65
B67: 66
B68: 67
B69: 68
B70: 69
B71: 70
B72: 71
B73: 72
B74: 73
B75: 74
B76: 75
B77: 76
B78: 77
B79: 78
B80: 79
B81: 80
B82: 81
B83: 82
B84: 83
B85: 84
B86: 85
B87: 86
B88: 87
B89: 88
B90: 89
B91: 90
B92: 91
B93: 92
B94: 93
B95: 94
B96: 95
B97: 96
B98: 97
B99: 98
B100: 99
B101: 100
